Cogmind - Beta 11.1 @@@ ROGUE MODE // 2022.05.11 @ 17:03:48 Player: Smie Result: Destroyed by S-27 Virus with Autogun Performance ------------- Evolutions (4) 2000 Regions Visited (10) 2000 Robots Destroyed (26) 130 Value Destroyed (866) 866 Prototype IDs (14) 280 Alien Tech Used (0) 0 Bonus (337) 337 TOTAL SCORE: 5613 Bonus ------- Follower Combat Kills 37 Met Data Miner 300 Cogmind --------- Core Integrity 0/850 Matter 291/300 Energy 300/300 System Corruption 0% Temperature Cool (0) Movement Core (50) Location -5/Proximity Caves Parts ------- > --- POWER (2) -------- (None) > --- PROPULSION (4) --- (None) > --- UTILITY (5) ------ Compact Battery Core Analyzer > --- WEAPON (4) ------- (None) > --- INVENTORY (5) ---- Light Angular Momentum Engine Powered Hammer Peak State ------------ > --- POWER ------------ Light Nuclear Core > --- PROPULSION ------- Improved Treads Armored Treads Medium Treads Medium Treads > --- UTILITY ---------- Advanced Heat Sink Cooling System Small Storage Unit Particle Charger Improved Medium Armor Plating > --- WEAPON ----------- Improved Spread Laser Improved Spread Laser Plasma Rifle Compact Ion Cannon > --- INVENTORY -------- Medium Treads Improved Heat Sink Core Analyzer Recoil Stabilizer Phase Shifter Core Shielding Shield Generator [Rating: 54] Favorites ----------- Power Light Ion Engine Engine Light Ion Engine Power Core Light Nuclear Core Propulsion Aluminum Leg Treads Medium Treads Leg Aluminum Leg Wheel Armored Wheel Flight Unit VTOL Module Utility Small Storage Unit Device Cooling System Storage Small Storage Unit Processor Core Analyzer Hackware Hacking Suite Protection Light Armor Plating Weapon Improved Spread Laser Energy Gun Improved Spread Laser Energy Cannon Compact Ion Cannon Ballistic Gun Assault Rifle Launcher Rocket Launcher Special Weapon Mining Laser Slashing Weapon Chainsword Build | -11 -10 -9 -9 -8 -7 -6 -6 -6 -6 -5 ------- Run | Scr Mat Mat Min Mat Fac Fac Low Low Dat Pro Slots Evolved 8 | . . 2 . 2 2 2 . . . . Power 1 | . . . . . . 1 . . . . Propulsion 2 | . . 1 . 1 . . . . . . Utility 3 | . . 1 . 1 . 1 . . . . Weapon 2 | . . . . . 2 . . . . . Parts Attached 75 | 6 4 9 7 11 13 8 9 4 . 4 Power 5 | 1 . 1 . 1 1 . . . . 1 Engine 4 | 1 . 1 . 1 . . . . . 1 Core 1 | . . . . . 1 . . . . . Reactor . | . . . . . . . . . . . Propulsion 31 | 2 . 4 5 1 7 4 5 1 . 2 Treads 18 | . . 1 1 1 7 3 5 . . . Leg 8 | 2 . 3 2 . . 1 . . . . Wheel 4 | . . . 2 . . . . 1 . 1 Hover . | . . . . . . . . . . . Flight 1 | . . . . . . . . . . 1 Utility 22 | 1 2 2 1 4 3 2 3 3 . 1 Device 11 | . 1 1 1 2 2 2 . 2 . . Storage 5 | 1 1 1 . . . . 1 1 . . Processor 2 | . . . . . . . 2 . . . Hackware 1 | . . . . 1 . . . . . . Protection 3 | . . . . 1 1 . . . . 1 Artifact . | . . . . . . . . . . . Weapon 17 | 2 2 2 1 5 2 2 1 . . . Energy Gun 12 | 2 1 1 . 5 2 1 . . . . Energy Cannon 1 | . . . . . . 1 . . . . Ballistic Gun 1 | . 1 . . . . . . . . . Ballistic Cannon . | . . . . . . . . . . . Launcher 1 | . . . 1 . . . . . . . Special Weapon 1 | . . 1 . . . . . . . . Impact Weapon . | . . . . . . . . . . . Slashing Weapon 1 | . . . . . . . 1 . . . Piercing Weapon . | . . . . . . . . . . . Special Melee Weapon . | . . . . . . . . . . . Unidentified Prototypes 3 | . . . 1 1 . 1 . . . . Parts Lost 41 | . 2 2 8 1 1 8 8 7 . 4 Power 4 | . . 1 1 . 1 1 . . . . Propulsion 16 | . . . 4 . . 3 3 4 . 2 Utility 11 | . . . 1 . . 3 3 2 . 2 Weapon 10 | . 2 1 2 1 . 1 2 1 . . Highest Loss Streak 8 | . 2 2 8 1 1 5 5 8 . 4 To Critical Strikes 2 | . . . . . . 1 1 . . . Average Slot Usage (%) 74 | . 85 83 77 93 99 80 62 20 20 25 Engine 3 | . 14 7 6 7 2 . . . . . Core 1 | . . . . . 4 3 . . . . Treads 14 | . . 9 1 18 28 22 17 . . . Leg 9 | . 28 23 22 18 1 3 . . . . Device 10 | . . 13 18 11 12 14 10 1 . . Storage 8 | . 17 19 11 9 7 6 6 3 6 6 Processor 2 | . . . . . . . 6 13 13 12 Hackware 1 | . . . . 5 1 . . . . . Protection 2 | . . . . 6 7 3 . . . . Energy Gun 14 | . 19 3 5 16 30 22 9 . . . Energy Cannon 1 | . . . . . . 3 5 . . . Naked Turns . | . . . . . . . . . . . Heaviest Build 39 | 13 17 18 19 29 35 39 24 3 1 2 Greatest Support 107 | 20 20 30 32 20 107 79 28 3 3 4 Greatest Overweight (x) 2 | . . . 2 1 . 1 . . . . Average Overweight (x) . | . . . . . . . . . . . Largest Inventory Capacity 8 | 8 8 8 8 8 8 8 8 5 5 5 Average Capacity 7 | 7 8 8 8 8 8 8 7 5 5 5 Most Carried 8 | 6 8 8 8 8 8 8 8 3 2 3 Average Carried 6 | 3 6 6 7 6 7 7 7 . 2 2 Final Capacity 8 | 8 8 8 8 8 8 8 5 5 5 5 Final Carried 8 | 6 7 8 5 8 8 8 3 2 2 2 Class Distribution -------------------- 56% | Mutant 23% | Scavenger-Mutant 19% | Gunner Dominant Class ---------------- Mutant | -10/Materials Mutant | -9/Materials Scavenger-Mutant | -9/Mines Scavenger-Mutant | -8/Materials Gunner | -7/Factory Gunner | -6/Factory Mutant | -6/Lower Caves Mutant | -6/Lower Caves Mutant | -6/Data Miner Mutant | -5/Proximity Caves Resources | -11 -10 -9 -9 -8 -7 -6 -6 -6 -6 -5 ----------- Run | Scr Mat Mat Min Mat Fac Fac Low Low Dat Pro Matter Collected 921 | 209 98 123 20 170 95 90 70 35 . 11 Remotely . | . . . . . . . . . . . Salvage Created 1057 | . 128 199 42 230 155 303 . . . . Parts 46 | . 7 11 1 15 5 7 . . . . Haulers Intercepted . | . . . . . . . . . . . Recyclers Shooed 1 | . . . . . 1 . . . . . Parts Field Recycled . | . . . . . . . . . . . Retrieved Matter . | . . . . . . . . . . . Parts Self-Destructed 11 | . . . . . . . 2 3 . 6 Prevented . | . . . . . . . . . . . Kills | -11 -10 -9 -9 -8 -7 -6 -6 -6 -6 -5 ------- Run | Scr Mat Mat Min Mat Fac Fac Low Low Dat Pro Combat Hostiles Destroyed 25 | . 5 4 2 8 3 3 . . . . Guns 21 | . 5 4 . 8 3 1 . . . . Cannons 4 | . . . 2 . . 2 . . . . Classes Destroyed 4 | . 2 1 . . . 1 . . . . Recycler 1 | . . . . . . 1 . . . . Swarmer 8 | . 3 . . 5 . . . . . . Grunt 12 | . 2 2 2 . 3 3 . . . . Sentry 5 | . . 2 . 3 . . . . . . Best Kill Streak 3 | . 2 2 2 3 3 1 . . . . Combat Bots Only 3 | . 2 2 2 3 3 1 . . . . Max Kills in Single Turn 1 | . 1 1 1 1 1 1 . . . . Gunslinging . | . . . . . . . . . . . Exploded . | . . . . . . . . . . . Melee . | . . . . . . . . . . . Uniques/NPCs Destroyed . | . . . . . . . . . . . Combat | -11 -10 -9 -9 -8 -7 -6 -6 -6 -6 -5 -------- Run | Scr Mat Mat Min Mat Fac Fac Low Low Dat Pro Damage Taken 5191 | . 355 312 621 388 142 1831 929 464 . 149 Core 1120 | . 46 36 158 14 . 261 321 188 . 96 Absorbed by Shields 29 | . . . . . . . . 29 . . Redirected to Shielding 8 | . . . . . . . . . . 8 Core Remaining (%) 85 | 100 81 . 51 97 100 . . . . . Volleys Fired 85 | . 22 23 6 22 4 8 . . . . Largest 4 | . 2 1 2 2 4 4 . . . . Hottest 315 | . 90 40 140 150 276 315 . . . . Shots Fired 135 | . 35 23 10 32 12 23 . . . . Gun 121 | . 35 23 4 32 12 15 . . . . Cannon 8 | . . . . . . 8 . . . . Launcher 2 | . . . 2 . . . . . . . Special 4 | . . . 4 . . . . . . . Kinetic 24 | . 9 15 . . . . . . . . Thermal 109 | . 26 8 8 32 12 23 . . . . Explosive 2 | . . . 2 . . . . . . . Electromagnetic . | . . . . . . . . . . . Robot Hit Streak 9 | . 6 9 8 7 5 9 . . . . Robot Miss Streak 9 | . 2 3 1 3 2 9 . . . . Penetration Max . | . . . . . . . . . . . Secondary Targets 2 | . 2 . . . . . . . . . Max Gunslinging Chain 1 | . 1 . . . . . . . . . Shots Hit Robots 91 | . 24 17 8 15 8 19 . . . . Core Hits 65 | . 8 7 7 13 14 16 . . . . Critical Kills . | . . . . . . . . . . . Critical Parts Destroyed 1 | . . 1 . . . . . . . . Critical Strikes 2 | . 1 1 . . . . . . . . Burn 1 | . 1 . . . . . . . . . Destroy 1 | . . 1 . . . . . . . . Melee Attacks . | . . . . . . . . . . . Impact . | . . . . . . . . . . . Slashing . | . . . . . . . . . . . Piercing . | . . . . . . . . . . . Sneak Attacks . | . . . . . . . . . . . Combat Hostiles . | . . . . . . . . . . . Follow-up Attacks . | . . . . . . . . . . . Damage Inflicted 1616 | . 294 209 207 267 172 467 . . . . Guns 1257 | . 294 205 45 267 172 274 . . . . Cannons 179 | . . . . . . 179 . . . . Explosions 90 | . . . 90 . . . . . . . Melee . | . . . . . . . . . . . Ramming 18 | . . 4 . . . 14 . . . . Kinetic 212 | . 85 127 . . . . . . . . Thermal 1296 | . 209 78 117 267 172 453 . . . . Explosive 90 | . . . 90 . . . . . . . Electromagnetic . | . . . . . . . . . . . Impact . | . . . . . . . . . . . Slashing . | . . . . . . . . . . . Piercing . | . . . . . . . . . . . Highest Corruption . | . . . . . . . . . . . Average Corruption . | . . . . . . . . . . . Corruption Purged . | . . . . . . . . . . . Corruption Blocked . | . . . . . . . . . . . Overload Shots . | . . . . . . . . . . . Overflow Damage . | . . . . . . . . . . . Projectiles . | . . . . . . . . . . . Explosions . | . . . . . . . . . . . Melee . | . . . . . . . . . . . Knockbacks . | . . . . . . . . . . . Impact . | . . . . . . . . . . . Kinetic . | . . . . . . . . . . . Secondary . | . . . . . . . . . . . Self-Inflicted Damage 60 | . . . 60 . . . . . . . Shots 2 | . . . 2 . . . . . . . Rammed 10 | . . . . . . 10 . . . . Targets Rammed 11 | . . 1 . . . 10 . . . . Kicked 1 | . . 1 . . . . . . . . Crushed . | . . . . . . . . . . . Highest Temperature 362 | . 362 19 25 189 359 132 . . . . Average Temperature 137 | . 205 8 12 75 208 71 . . . . Received Heat Transfer 1489 | . 126 192 81 36 81 676 297 . . . Effects 11 | . 3 . . . 8 . . . . . Shutdowns 1 | . 1 . . . . . . . . . Energy Bleed 2 | . 1 . . . 1 . . . . . Interference 6 | . 1 . . . 5 . . . . . Short Circuit 1 | . . . . . 1 . . . . . Damage (minor) 1 | . . . . . 1 . . . . . Siege Activations . | . . . . . . . . . . . Robots Corrupted . | . . . . . . . . . . . Combat Hostiles . | . . . . . . . . . . . Parts Fried . | . . . . . . . . . . . Impact Corruptions . | . . . . . . . . . . . Robots Melted . | . . . . . . . . . . . Combat Hostiles . | . . . . . . . . . . . Parts Melted 2 | . 1 . . 1 . . . . . . Heat Transferred 2391 | . 620 175 250 551 228 567 . . . . Parts Sabotaged . | . . . . . . . . . . . Parts Stolen . | . . . . . . . . . . . Parts Stripped . | . . . . . . . . . . . Power Chain Reactions . | . . . . . . . . . . . Missiles Intercepted . | . . . . . . . . . . . Alert | -11 -10 -9 -9 -8 -7 -6 -6 -6 -6 -5 ------- Run | Scr Mat Mat Min Mat Fac Fac Low Low Dat Pro Peak Influence 185 | . 155 185 93 158 154 112 . . . . Initial 74 | . . 65 13 5 49 74 . . . . Average 64 | . 62 98 43 53 106 62 . . . . Maximum Alert Level . | . . . . . . . . . . . Low Security (%) 100 | 100 100 100 100 100 100 100 . . . . Level 1 . | . . . . . . . . . . . Level 2 . | . . . . . . . . . . . Level 3 . | . . . . . . . . . . . Level 4 . | . . . . . . . . . . . Level 5 . | . . . . . . . . . . . High Security . | . . . . . . . . . . . Max Security . | . . . . . . . . . . . Squads Dispatched 3 | . . 1 . 1 . 1 . . . . Investigation . | . . . . . . . . . . . Extermination . | . . . . . . . . . . . Reinforcement 3 | . . 1 . 1 . 1 . . . . Assault . | . . . . . . . . . . . Garrison . | . . . . . . . . . . . Intercept . | . . . . . . . . . . . Searches Triggered . | . . . . . . . . . . . Construction Impeded . | . . . . . . . . . . . Haulers Reinforced . | . . . . . . . . . . . Active Scanning Responses . | . . . . . . . . . . . Cargo Convoy Interrupts . | . . . . . . . . . . . Stealth | -11 -10 -9 -9 -8 -7 -6 -6 -6 -6 -5 --------- Run | Scr Mat Mat Min Mat Fac Fac Low Low Dat Pro Distress Signals . | . . . . . . . . . . . Communications Jammed . | . . . . . . . . . . . Distress Signals . | . . . . . . . . . . . Times Spotted 71 | . 6 10 5 11 4 12 7 5 . 11 Peak Tracking Total 9 | . 5 5 7 5 4 5 5 4 . 9 Tactical Retreats 4 | . . . . . 1 . 1 1 . 1 Traps | -11 -10 -9 -9 -8 -7 -6 -6 -6 -6 -5 ------- Run | Scr Mat Mat Min Mat Fac Fac Low Low Dat Pro Traps Triggered . | . . . . . . . . . . . Indirectly . | . . . . . . . . . . . Trap Hack Attempts . | . . . . . . . . . . . Triggered . | . . . . . . . . . . . Disarmed . | . . . . . . . . . . . Reprogrammed . | . . . . . . . . . . . Reused . | . . . . . . . . . . . Traps Extracted . | . . . . . . . . . . . Installed . | . . . . . . . . . . . Triggered 2 | . . . . . . . 2 . . . Machines | -11 -10 -9 -9 -8 -7 -6 -6 -6 -6 -5 ---------- Run | Scr Mat Mat Min Mat Fac Fac Low Low Dat Pro Machines Disabled 1 | . . . . 1 . . . . . . Max in Single Turn 1 | . . . . 1 . . . . . . Machines Sabotaged . | . . . . . . . . . . . Garrisons Compromised . | . . . . . . . . . . . Overloaded Fab Kills . | . . . . . . . . . . . Hacking | -11 -10 -9 -9 -8 -7 -6 -6 -6 -6 -5 --------- Run | Scr Mat Mat Min Mat Fac Fac Low Low Dat Pro Machines Accessed 21 | . 4 2 1 4 2 3 . . 4 1 Terminals 13 | . 3 2 . 4 1 2 . . . 1 Fabricators 1 | . . . . . . 1 . . . . Repair Stations 1 | . . . . . 1 . . . . . Recycling Units 1 | . 1 . . . . . . . . . Scanalyzers . | . . . . . . . . . . . Garrison Access . | . . . . . . . . . . . Total Hacks 62 | . 8 4 1 8 5 4 . . 31 1 Successful 49 | . 4 1 1 7 3 1 . . 31 1 Failed 13 | . 4 3 . 1 2 3 . . . . Catastrophic 2 | . . 1 . . . 1 . . . . Database Lockouts . | . . . . . . . . . . . Manual 20 | . 5 1 . 7 3 3 . . 1 . Terminals 25 | . 6 4 . 8 3 3 . . . 1 Fabricators 1 | . . . . . . 1 . . . . Repair Stations 2 | . . . . . 2 . . . . . Recycling Units 2 | . 2 . . . . . . . . . Scanalyzers . | . . . . . . . . . . . Garrison Access . | . . . . . . . . . . . Terminal Hacks 44 | . 3 1 1 6 1 . . . 31 1 Record 12 | . . . . . . . . . 11 1 Part Schematic 11 | . . . . . . . . . 11 . Robot Schematic 6 | . . . . . . . . . 6 . Prototype ID Bank 3 | . . . . . . . . . 3 . Open Door 1 | . . . 1 . . . . . . . Level Access Points 2 | . 1 . . 1 . . . . . . Alert Level 1 | . . . . 1 . . . . . . Unreport Threat 2 | . . 1 . 1 . . . . . . Locate Traps 1 | . . . . 1 . . . . . . Recall Reinforcements 1 | . . . . 1 . . . . . . Registered Components 1 | . 1 . . . . . . . . . Zone Layout 3 | . 1 . . 1 1 . . . . . Fabricator Hacks 1 | . . . . . . 1 . . . . Network Status 1 | . . . . . . 1 . . . . Repair Station Hacks 1 | . . . . . 1 . . . . . Scan Component 1 | . . . . . 1 . . . . . Recycling Unit Hacks . | . . . . . . . . . . . Scanalyzer . | . . . . . . . . . . . Garrison Access Hacks . | . . . . . . . . . . . Unauthorized Hacks 3 | . 1 . . 1 1 . . . . . Terminals 3 | . 1 . . 1 1 . . . . . Botnet 3 | . 1 . . 1 1 . . . . . Fabricators . | . . . . . . . . . . . Repair Stations . | . . . . . . . . . . . Recycling Units . | . . . . . . . . . . . Scanalyzers . | . . . . . . . . . . . Garrison Access . | . . . . . . . . . . . Data Cores Recovered . | . . . . . . . . . . . Used . | . . . . . . . . . . . Hacking Detections 10 | . 2 2 . 3 1 2 . . . . Full Trace Events . | . . . . . . . . . . . Feedback Events . | . . . . . . . . . . . Feedback Blocked . | . . . . . . . . . . . Robot Schematics Acquired 6 | . . . . . . . . . 6 . Robots Built . | . . . . . . . . . . . Authchips . | . . . . . . . . . . . Time . | . . . . . . . . . . . Total Robot Build Rating . | . . . . . . . . . . . Part Schematics Acquired 11 | . . . . . . . . . 11 . Parts Built . | . . . . . . . . . . . Authchips . | . . . . . . . . . . . Time . | . . . . . . . . . . . Total Part Build Rating . | . . . . . . . . . . . Parts Repaired . | . . . . . . . . . . . Time . | . . . . . . . . . . . Parts Recycled . | . . . . . . . . . . . Recycled Matter . | . . . . . . . . . . . Retrieved Matter . | . . . . . . . . . . . Retrieved Components . | . . . . . . . . . . . Parts Scanalyzed . | . . . . . . . . . . . Part Schematics Acquired . | . . . . . . . . . . . Parts Damaged . | . . . . . . . . . . . Bothacking | -11 -10 -9 -9 -8 -7 -6 -6 -6 -6 -5 ------------ Run | Scr Mat Mat Min Mat Fac Fac Low Low Dat Pro Used RIF Installer . | . . . . . . . . . . . Robots Hacked . | . . . . . . . . . . . Non-combat . | . . . . . . . . . . . Combat . | . . . . . . . . . . . Robot Hacks Applied . | . . . . . . . . . . . Relay Couplers Released . | . . . . . . . . . . . Fabnet Peak Effective % . | . . . . . . . . . . . Robots Rewired . | . . . . . . . . . . . Allies Hacked . | . . . . . . . . . . . Hacks Repelled . | . . . . . . . . . . . Allies | -11 -10 -9 -9 -8 -7 -6 -6 -6 -6 -5 -------- Run | Scr Mat Mat Min Mat Fac Fac Low Low Dat Pro Total Allies 1 | . . . . . . . . . . 1 Largest Group 1 | . . . . . . . . . . 1 Highest-Rated Group 96 | . . . . . . . . . . 96 Highest-Rated Ally 96 | . . . . . . . . . . 96 Total Orders . | . . . . . . . . . . . Ally Attacks 10 | . . . . . . . . . . 10 Total Damage 328 | . . . . . . . . . . 328 Kills 1 | . . . . . . . . . . 1 Allies Corrupted . | . . . . . . . . . . . Allies Melted . | . . . . . . . . . . . Intel | -11 -10 -9 -9 -8 -7 -6 -6 -6 -6 -5 ------- Run | Scr Mat Mat Min Mat Fac Fac Low Low Dat Pro Robot Analysis Total . | . . . . . . . . . . . Derelict Logs Recovered 3 | . . . . . . . . 3 . . Drone Launches . | . . . . . . . . . . . Drone Recoveries . | . . . . . . . . . . . Exploration | -11 -10 -9 -9 -8 -7 -6 -6 -6 -6 -5 ------------- Run | Scr Mat Mat Min Mat Fac Fac Low Low Dat Pro Turns Passed 3333 | 78 289 220 204 644 252 799 401 333 46 67 Spaces Moved 2589 | 56 176 117 147 411 127 403 261 652 92 147 Core 833 | 5 . . 1 . . . 31 652 92 52 Treads 760 | . . . . . 127 403 230 . . . Legs 850 | 51 176 117 95 411 . . . . . . Wheels 51 | . . . 51 . . . . . . . Hover . | . . . . . . . . . . . Flight 95 | . . . . . . . . . . 95 Fastest Speed 35 | 50 120 120 100 120 160 145 50 50 50 35 Average Speed 107 | 113 120 120 113 132 160 160 146 50 50 41 Slowest Speed 240 | 120 120 120 150 190 163 240 160 50 50 50 Overloaded Moves . | . . . . . . . . . . . Propulsion Burnouts . | . . . . . . . . . . . Robots Hopped . | . . . . . . . . . . . Cave-ins Triggered . | . . . . . . . . . . . Exploration Rate (%) 35 | 4 42 16 36 40 4 12 53 80 75 28 Regions Visited 10 Branch Regions 5 Pre-discovered Areas 1 | . . . . . . . . . 1 . Known Exits Taken 2 | . 1 . . 1 . . . . . . Unknown Exits Taken 8 | 1 . 1 1 . 1 1 1 1 1 . Scrap Searched 7 | . . . 1 . . . 3 3 . . Spaces Dug . | . . . . . . . . . . . Terrain Destroyed 20 | . . . 18 . . 2 . . . . Melee . | . . . . . . . . . . . Projectile 2 | . . . . . . 2 . . . . AOE 18 | . . . 18 . . . . . . . Terrain Rammed . | . . . . . . . . . . . Walls Destroyed . | . . . . . . . . . . . Machines Disabled . | . . . . . . . . . . . Actions | -11 -10 -9 -9 -8 -7 -6 -6 -6 -6 -5 --------- Run | Scr Mat Mat Min Mat Fac Fac Low Low Dat Pro Total 2976 | 67 218 170 166 478 167 531 279 657 91 152 Wait 162 | . 14 19 4 19 14 92 . . . . Move 2579 | 55 175 116 146 410 126 402 260 651 91 147 Hop . | . . . . . . . . . . . Pick Up 29 | 6 2 1 1 8 2 5 2 2 . . Fast Attach 33 | 6 1 4 1 6 3 3 5 1 . 3 Attach 25 | . 2 2 4 4 3 2 4 3 . 1 Detach 8 | . 1 . 1 1 2 . 2 . . 1 Swap 18 | . 1 3 2 2 7 3 . . . . Drop 26 | . . 1 1 6 6 6 6 . . . Fire 85 | . 22 23 6 22 4 8 . . . . Melee . | . . . . . . . . . . . Ram . | . . . . . . . . . . . Kick 1 | . . 1 . . . . . . . . Crush 10 | . . . . . . 10 . . . . Escape Stasis . | . . . . . . . . . . . Rewire . | . . . . . . . . . . . Trap . | . . . . . . . . . . . Miscellaneous . | . . . . . . . . . . . Route ------- -11/Scrapyard -10/Materials (discovered 3 exits: *Mat x3) -9/Materials -9/Mines -8/Materials (discovered 3 exits: *Fac x3) -7/Factory -6/Factory -6/Lower Caves -6/Lower Caves -6/Data Miner -5/Proximity Caves History --------- Turn | Location | Event 3 | -11/Scrapyard | Discovered new exit (range 15) 79 | -11/Scrapyard | Entered Materials 198 | -10/Materials | Identified exit to Materials 310 | -10/Materials | Build established: Mutant 368 | -10/Materials | Entered another Materials area 368 | -9/Materials | Evolved 2 slots: Propulsion x1, Utility x1 574 | -9/Materials | Discovered new exit (range 9) 588 | -9/Materials | Entered Mines 615 | -9/Mines | Met a Derelict bent on vengeance 682 | -9/Mines | Assembled infested the area 753 | -9/Mines | Lost 8 parts (1p4n1u2w) 755 | -9/Mines | Discovered new exit (range 8) 772 | -9/Mines | Found the Drone Emporium 775 | -9/Mines | Found Prototype Device 775 | -9/Mines | Identified Decoy Drone Bay 792 | -9/Mines | Entered Materials 792 | -8/Materials | Evolved 2 slots: Propulsion x1, Utility x1 1030 | -8/Materials | Identified exit to Factory 1293 | -8/Materials | Build established: Scavenger-Mutant 1436 | -8/Materials | Entered Factory 1436 | -7/Factory | Evolved 2 slots: Weapon x2 1645 | -7/Factory | Discovered new exit (range 14) 1688 | -7/Factory | Entered another Factory area 1688 | -6/Factory | Evolved 2 slots: Power x1, Utility x1 1769 | -6/Factory | Build established: Gunner 2184 | -6/Factory | Lost 5 parts (1p1n3u) 2421 | -6/Factory | Build established: Mutant 2471 | -6/Factory | Discovered new exit (range 10) 2487 | -6/Factory | Entered Lower Caves 2509 | -6/Lower Caves | Lost 3 parts (2n1w) 2708 | -6/Lower Caves | Spotted B-75 Beast 2808 | -6/Lower Caves | Lost 5 parts (1n2u2w) 2863 | -6/Lower Caves | Core integrity fell below 50% 2878 | -6/Lower Caves | Discovered new exit (range 10) 2888 | -6/Lower Caves | Entered another Lower Caves area 2891 | -6/Lower Caves | Learned 4 Factory zone layouts 2963 | -6/Lower Caves | Lost 8 parts (5n2u1w) 2965 | -6/Lower Caves | Learned 4 Factory zone layouts 2972 | -6/Lower Caves | Core integrity fell below 20% 2999 | -6/Lower Caves | Encountered a Warlord checkpoint 3096 | -6/Lower Caves | Spotted B-75 Beast 3213 | -6/Lower Caves | Discovered new exit (range 8) 3221 | -6/Lower Caves | Entered Data Miner 3221 | -6/Data Miner | Discovered new exit (range 7) 3231 | -6/Data Miner | Met Data Miner 3240 | -6/Data Miner | Learned location of Section 7 (-2) 3240 | -6/Data Miner | Acquired the access code to Warlord's prototype stash 3248 | -6/Data Miner | Received God Mode back door access code from Data Miner 3267 | -6/Data Miner | Entered Proximity Caves 3299 | -5/Proximity Caves | Escorted by Enhanced Grunt 3334 | -5/Proximity Caves | Destroyed by S-27 Virus with Autogun Last Messages --------------- better use than Warlord, so if you see an opportunity, hack it and enter \\WRTT to gain control via the back door I've installed. Now off with you. LOCATION=UNKNOWN GOAL=ESCAPE 03269_ Acquired VTOL Module. 03272_ Acquired Lgt. Angular Momentum Engine. 03280_ Connecting with Outpost Terminal... 03280_ Current location identified: Proximity Caves >>Query(Status Report 434V) HEAT REACHING DANGEROUS LEVELS. INVESTIGATING SOURCE. 03296_ Acquired 5 matter. 03296_ Acquired 3 matter. 03298_ Acquired Wheel. 03299_ Enhanced Grunt: "Protecting LRC-V3." 03299_ Acquired 3 matter. 03309_ VTOL Module destroyed. 03312_ Wheel destroyed. 03324_ 0b10 Decoder Chip [Scout] destroyed. 03328_ Core Shielding destroyed. Map ----- +----------------------------------------------------+ | ?????????????????????????????????????????????????? | | ?????????????????????????????????????????????????? | | ?????????????????????????????????????????????????? | | ?????????????????????????????????????????????????? | | #????????????????????????????????????????????????? | | ????????????????????????????????????????????????? | | ????????????????????????????????????????????????? | | ????????????????????????????????????????????????? | | ????????????##???????#?????????????????????????? | | # ??????????# ##????## ?????????????????????????? | | #???####?? ##??## ##????????????????????????? | | #### ### #? ## #????????????????????????? | | ## #?? #????????????????????????? | | #????# ##????????????????????????? | | # ###### ####### #????????????????????????? | | ## ### ## ### #s##???????????????????????? | | ?# ## ##### #???????????????????????? | | ## # #???## #???????????????????????? | | # #############s#???????????????????????? | | ### #? "" ##s##??????????????????????? | | #####?# ??? " "" #?????##???????????????? | | ?????# ??? " """ ##??? ????????????????? | | ###?# ?? """ ##?? ??????????????????? | | #### ???"" "" ## #???????????????????? | | #### ???""" " #???????????????????? | | #?# ? "" @ ##???????????????????? | | #?# ##????????????????????? | | ### ########### ##?????????????????????? | | ## ??????????# #??????????????????????? | | ## ??????????# ##??????????????????????? | | #?????? ## ??# #???????????????????????? | | #???? ??# ????????????????????????? | | ### ? ????????????????????????? | | ? ????????????????????????? | | ????????????????????????? | | ##### #????????????????????????? | | ##????? ?????????????????????????? | | ##??????? #?????????????????????????? | | ##????????? ? #??????????????????????????? | | ##??????????? ??#???????????????????????????? | | ##????????????? ???????????????????????????????? | | ???????????????? ????????????????????????????????? | | ?????????????????????????????????????????????????? | | ?????????????????????????????????????????????????? | | ?????????????????????????????????????????????????? | | ?????????????????????????????????????????????????? | | ?????????????????????????????????????????????????? | | ?????????????????????????????????????????????????? | | ?????????????????????????????????????????????????? | | ?????????????????????????????????????????????????? | +----------------------------------------------------+ Best States ------------- Heat Dissipation 78 Energy Generation 14 Energy Capacity 300 Matter Stores 300 Matter Capacity 300 Sight Range 16 Robot Scan Range 14 Terrain Scan Density 10 Armor Coverage 225 Core Shielding 20 Evasion (%) 63 Core Analysis 6 Recoil Reduction 4 Energy Filtering 30 Particle Charging 15 Offensive Hacking 10 Item Schematics ----------------- Combat Drone Bay | -6/Data Miner | Free Lgt. Regenerative Plating | -6/Data Miner | Free Cld. Gravmag System | -6/Data Miner | Free Prc. Energy Filter | -6/Data Miner | Free Neutron Cannon | -6/Data Miner | Free Field Propulsion Array | -6/Data Miner | Free Imp. Force Field | -6/Data Miner | Free Adv. Datajack | -6/Data Miner | Free Hvy. Treads | -6/Data Miner | Free Lgt. Antimatter Reactor | -6/Data Miner | Free Fusion Bomb Launcher | -6/Data Miner | Free Robot Schematics ------------------ P-60 Hacker | -6/Data Miner | Free E-15 Imp | -6/Data Miner | Free Y-54 Guardian | -6/Data Miner | Free R-10 Processor | -6/Data Miner | Free B-60 Warrior | -6/Data Miner | Free G-67 Veteran | -6/Data Miner | Free Fabricated ------------ Nothing Alien Tech Used ----------------- None Achievements -------------- None Challenges ------------ None Game ------ Seed ShockThrowingBuckler Manual? 0 Play Time 01:10:46 Cumulative 43.6 hours Start 2022.05.11 @ 15:36:21 End 2022.05.11 @ 17:03:48 Sessions 1 Manual Loads 0 Difficulty Rogue Special Mode None Game No. 30 Rogue 11 Adventurer 16 Explorer 3 Win Type - Total 2 Types 2/0/0/0/0/0/0/0/0 Lore% 31 Gallery% 36 Achievement% 30 Wizard Run 0 Options --------- ASCII 1 Keyboard 1 Movement Numpad Keybinds 0 Fullscreen 1 Font 18/TerminusBold Map View 76x50 Tactical HUD 1 Map Filters NONE Filters NONE Steam 1 RUN: 909513c8-ccd8-43df-823b-16019fef6f60